bitfinex/quotes_ETHUSD_20250705
["timestamp","ask_amount","ask_price","bid_price","bid_amount"]
[1751738539727,0.0424974,2508.4,2507.8,36.45178967]
[1751738541050,0.0424974,2508.4,2507.8,41.20178967]
[1751738541213,0.0424974,2508.4,2507.8,47.68177242]
[1751738541533,0.0424974,2508.4,2507.8,41.20178967]
[1751738541904,0.0424974,2508.4,2507.8,43.62901991]
[1751738542854,0.0424974,2508.4,2507.8,32.83311991]
[1751738543135,0.0424974,2508.4,2507.8,42.24711991]
[1751738544830,0.0424974,2508.4,2507.8,42.79711991]
[1751738547043,0.0424974,2508.4,2507.8,32.28311991]
[1751738547221,0.0424974,2508.4,2507.8,42.24611991]
[1751738551023,0.0424974,2508.4,2507.8,37.49611991]
[1751738558346,0.0424974,2508.4,2507.8,35.55711991]
[1751738558554,0.0424974,2508.4,2507.8,2.846]
[1751738558765,0.1992,2508.0,2507.8,2.846]
[1751738558923,4.04989721,2507.9,2507.8,2.846]
[1751738561553,4.04989721,2507.9,2507.8,0.9]
[1751738561755,4.04989721,2507.9,2507.8,2.846]
[1751738562150,4.04989721,2507.9,2507.8,0.9]
[1751738562340,4.87353216,2507.9,2507.8,0.9]
[1751738565251,3.98771782,2507.7,2507.6,1.946]
[1751738571660,3.98758801,2507.8,2507.6,1.946]
[1751738571661,3.98766084,2507.8,2507.6,1.946]
[1751738571873,0.1992,2507.7,2507.6,1.946]
[1751738572562,0.1992,2507.8,2507.6,1.946]
[1751738573399,0.001,2507.7,2507.6,1.946]
[1751738576381,3.98871782,2507.7,2507.5,0.002]
[1751738576588,3.98871782,2507.7,2507.5,1.948]
[1751738579206,3.98787685,2507.6,2507.5,0.002]
[1751738579365,4.18707685,2507.6,2507.5,0.002]
[1751738579565,5.17548449,2507.6,2507.5,0.002]
[1751738582767,13.19648449,2507.6,2507.5,0.002]
[1751738595781,13.19748449,2507.6,2507.5,0.002]
[1751738596507,13.19848449,2507.6,2507.5,0.002]
[1751738603018,23.19848449,2507.6,2507.5,1e-08]
[1751738610831,23.74848449,2507.6,2507.5,1e-08]
[1751738621055,15.17648449,2507.6,2507.5,1e-08]
[1751738621374,23.19548449,2507.6,2507.5,1e-08]
[1751738622948,15.17648449,2507.6,2507.5,1e-08]
[1751738623249,23.19648449,2507.6,2507.5,1e-08]
[1751738624037,15.17648449,2507.6,2507.5,1e-08]
[1751738624336,23.19648449,2507.6,2507.5,1e-08]
[1751738636064,15.17648449,2507.6,2507.5,1e-08]
[1751738636263,23.19448449,2507.6,2507.5,1e-08]
[1751738642473,23.19348449,2507.6,2507.5,1e-08]
[1751738645576,15.17648449,2507.6,2507.5,1e-08]
[1751738645872,23.19348449,2507.6,2507.5,1e-08]
[1751738648843,15.17648449,2507.6,2507.5,1e-08]
[1751738649043,23.19348449,2507.6,2507.5,1e-08]
[1751738652182,32.10069748,2507.6,2507.5,1e-08]
[1751738655880,23.19348449,2507.6,2507.5,1e-08]
[1751738686420,23.74348449,2507.6,2507.5,1e-08]
[1751738686592,23.95154018,2507.6,2507.5,1e-08]
[1751738695415,3.98883127,2507.0,2506.9,0.002]
[1751738695621,18.49256979,2507.0,2506.9,0.002]
[1751738696896,29.04256979,2507.0,2506.9,1e-08]
[1751738697898,31.48245392,2507.0,2506.9,1e-08]
[1751738698123,25.17376154,2507.0,2506.9,1e-08]
[1751738698427,35.13376154,2507.0,2506.9,1e-08]
[1751738699323,25.17376154,2507.0,2506.9,1e-08]
[1751738699495,24.26513889,2507.0,2506.9,1e-08]
[1751738700207,28.46813889,2507.0,2506.9,1e-08]
[1751738701929,24.26513889,2507.0,2506.9,1e-08]
[1751738702607,24.56791409,2507.0,2506.9,1e-08]
[1751738706306,14.53930865,2506.7,2506.6,1e-08]
[1751738706533,32.47733894,2506.7,2506.6,1e-08]
[1751738706837,32.68548447,2506.7,2506.6,1e-08]
[1751738724921,32.68648447,2506.7,2506.6,1e-08]
[1751738729540,14.7386678,2506.6,2506.5,1e-08]
[1751738729761,22.7606678,2506.6,2506.5,1e-08]
[1751738730063,23.81809263,2506.6,2506.5,1e-08]
[1751738737666,15.79609263,2506.6,2506.5,1e-08]
[1751738737854,23.81609263,2506.6,2506.5,1e-08]
[1751738740975,15.79609263,2506.6,2506.5,1e-08]
[1751738741180,23.81609263,2506.6,2506.5,1e-08]
[1751738745675,23.81609263,2506.6,2506.4,1e-08]
[1751738745676,14.53962696,2506.5,2506.4,1e-08]
[1751738745988,16.24793458,2506.5,2506.4,1e-08]
[1751738747973,3.99042298,2506.0,2505.9,0.7947974]
[1751738748179,12.01042298,2506.0,2505.9,0.7947974]
[1751738764902,3.99074147,2505.8,2505.7,0.7947]
[1751738765068,3.99074147,2505.8,2505.4,0.0424974]
[1751738765069,3.99106002,2505.6,2505.5,0.7947]
[1751738765396,12.01206002,2505.6,2505.5,0.7947]
[1751738766101,8.021,2505.6,2505.5,0.7947]
[1751738769302,8.021,2505.6,2505.5,0.7967]
[1751738772294,8.2202,2505.6,2505.5,0.7967]
[1751738773606,8.2202,2505.6,2505.5,1.2797691]
[1751738773902,8.2202,2505.6,2505.5,2.1797691]
[1751738774272,0.1992,2505.6,2505.5,2.1797691]
[1751738774478,8.2202,2505.6,2505.5,2.1797691]
[1751738777489,0.1992,2505.6,2505.5,2.1797691]
[1751738783011,0.1992,2505.6,2505.5,15.09761106]
[1751738783221,0.001,2506.5,2506.1,3.99023977]
[1751738783383,0.2002,2506.5,2506.2,15.29865221]
[1751738783707,0.2002,2506.5,2506.2,15.25875117]
[1751738783909,0.2002,2506.5,2506.4,7.24037334]
[1751738785717,0.001,2506.5,2506.4,7.24037334]
[1751738785888,0.001,2506.5,2506.4,6.10340786]
[1751738790433,0.001,2506.5,2506.3,1.942]
[1751738790933,8.027,2506.5,2506.2,10.7969]
[1751738791229,0.1992,2506.4,2506.2,12.7389]
[1751738791825,0.1992,2506.4,2506.2,16.7289952]
[1751738792029,0.1992,2506.4,2506.3,2.46979952]
[1751738792221,0.1992,2506.4,2506.3,0.7969]
[1751738797454,0.1992,2506.4,2506.3,4.78684533]
[1751738797622,0.001,2506.5,2506.4,3.98978614]
[1751738798025,0.001,2506.5,2506.4,4.88978614]
[1751738798759,0.001,2506.5,2506.4,0.9]
[1751738799259,0.001,2506.5,2506.3,4.82666456]
[1751738799555,0.001,2506.5,2506.3,6.92246132]
[1751738800561,0.001,2506.5,2506.4,3.98978614]
[1751738804233,0.001,2506.5,2506.4,4.75248614]
[1751738806343,0.001,2506.5,2506.4,0.7627]
[1751738807061,0.001,2506.5,2506.4,4.75248614]
[1751738811752,0.001,2506.5,2506.4,0.7627]
[1751738812861,0.001,2506.5,2506.4,4.75248614]
[1751738813995,0.001,2506.5,2506.4,0.7627]
[1751738816172,0.001,2506.5,2506.4,4.75248614]
[1751738816370,0.001,2506.5,2506.4,0.7627]
[1751738819786,0.001,2506.5,2506.3,0.03989945]
[1751738820262,3.98978708,2506.4,2506.2,1.947]
[1751738820454,4.18898708,2506.4,2506.2,1.947]
[1751738821288,0.1992,2506.4,2506.2,1.947]
[1751738821683,12.63217538,2506.4,2506.1,1.947]
[1751738821886,0.1992,2506.2,2506.1,1.947]
[1751738825758,4.18945094,2506.2,2506.0,1.945]
[1751738827195,0.1992,2506.2,2505.7,1.0242]
[1751738827381,3.99068151,2505.9,2505.6,1.945]
[1751738827692,4.19010074,2505.7,2505.6,1.945]
[1751738828199,3.99106002,2505.6,2505.5,0.002]
[1751738828972,12.91137672,2505.6,2505.5,0.002]
[1751738829160,15.40450632,2505.6,2505.5,0.002]
[1751738829596,6.48418962,2505.6,2505.5,0.002]
[1751738829776,14.51718962,2505.6,2505.5,0.002]
[1751738841509,15.06718962,2505.6,2505.5,0.002]
[1751738842203,25.06718962,2505.6,2505.5,0.002]
[1751738842374,14.74041931,2505.5,2504.9,0.0444974]
[1751738842695,24.9217465,2505.5,2504.9,0.0444974]
[1751738847822,24.9217465,2505.5,2504.4,4.86240674]
[1751738847823,4.203,2505.1,2503.5,0.02]
[1751738848003,4.54424828,2503.6,2503.5,0.02]
[1751738848179,14.23924828,2503.6,2503.5,0.0413346]
[1751738848844,4.54456738,2503.4,2503.3,1e-08]
[1751738849043,4.54456738,2503.4,2503.1,0.0446416]
[1751738849044,23.46520324,2503.2,2503.1,1e-08]
[1751738849331,14.54536537,2502.9,2502.8,1e-08]
[1751738849490,33.71268207,2502.9,2502.8,1e-08]
[1751738849685,13.99568466,2502.7,2502.6,1e-08]
[1751738849902,22.21968466,2502.7,2502.6,1e-08]
[1751738852222,24.24668466,2502.7,2502.6,1e-08]
[1751738852427,2.025,2502.9,2502.6,1e-08]
[1751738852602,12.21761529,2502.8,2502.6,1e-08]
[1751738852809,22.21761529,2502.8,2502.6,1e-08]
[1751738853200,3.99568466,2502.7,2502.6,1e-08]
[1751738853404,22.21759852,2502.8,2502.6,1e-08]
[1751738854123,8.224,2502.7,2502.6,1e-08]
[1751738854324,12.21968466,2502.7,2502.6,1e-08]
[1751738855133,12.21768466,2502.7,2502.6,1e-08]
[1751738857336,12.51184138,2502.7,2502.6,1e-08]
[1751738858518,0.29415672,2502.7,2502.6,1e-08]
[1751738858704,8.51315672,2502.7,2502.6,1e-08]
[1751738859431,0.29415672,2502.7,2502.6,1e-08]
[1751738859618,0.29415672,2502.7,2502.6,3.99584433]
[1751738859827,8.51015672,2502.7,2502.6,0.885405]
[1751738860006,8.51015672,2502.7,2502.6,1e-08]
[1751738860337,8.216,2502.7,2502.6,1e-08]
[1751738860627,8.50916534,2502.7,2502.6,1e-08]
[1751738860998,8.50916534,2502.7,2502.6,0.90000001]
[1751738861603,8.50916534,2502.7,2502.6,4.84584433]
[1751738861838,8.50916534,2502.7,2502.6,0.85000001]
[1751738863036,8.50916534,2502.7,2502.6,4.84584433]
[1751738863237,0.29316534,2502.7,2502.6,4.84584433]
[1751738863536,8.50516534,2502.7,2502.6,4.84584433]
[1751738864435,8.50516534,2502.7,2502.6,0.85000001]
[1751738865538,0.29316534,2502.7,2502.6,0.85000001]
[1751738865836,8.50116534,2502.7,2502.6,0.85000001]
[1751738866834,0.29316534,2502.7,2502.6,0.85000001]
[1751738867140,8.49916534,2502.7,2502.6,0.85000001]
[1751738869141,8.49916534,2502.7,2502.5,0.002]
[1751738869340,0.29316534,2502.6,2502.5,0.002]
[1751738870116,4.28900966,2502.6,2502.5,0.002]
[1751738870442,5.55002015,2502.6,2502.5,0.002]
[1751738871167,1.55417583,2502.6,2502.5,0.002]
[1751738871323,8.49716534,2502.6,2502.5,0.002]
[1751738872434,0.29316534,2502.6,2502.5,0.002]
[1751738872832,8.69736534,2502.6,2502.5,0.002]
[1751738874069,8.4042,2502.6,2502.5,0.002]
[1751738876133,12.40004432,2502.6,2502.5,0.002]
[1751738876463,14.03961769,2502.6,2502.5,0.002]
[1751738880652,14.03961769,2502.6,2502.1,0.0446416]
[1751738880653,3.99636608,2502.3,2502.1,0.0446416]
[1751738880869,8.69040647,2502.2,2502.1,0.0446416]
[1751738881851,8.49020647,2502.2,2502.1,4.04128442]
[1751738882170,0.29420647,2502.2,2502.1,4.04128442]
[1751738882400,8.49120647,2502.2,2502.1,4.94842337]
[1751738882566,8.49120647,2502.2,2502.1,4.04128442]
[1751738883241,8.48920647,2502.2,2502.1,4.04128442]
[1751738883964,8.48920647,2502.2,2502.1,0.0446416]
[1751738884264,8.68840647,2502.2,2502.1,0.0446416]
[1751738887164,0.49340647,2502.2,2502.1,0.0446416]
[1751738887380,8.48644455,2502.2,2502.1,5.68381936]
[1751738887950,8.48644455,2502.2,2502.1,4.80058442]
[1751738889853,8.48647571,2502.2,2502.1,4.80058442]
[1751738890449,8.48147571,2502.2,2502.1,4.80058442]
[1751738892572,0.29547571,2502.2,2502.1,4.80058442]
[1751738892779,8.47847571,2502.2,2502.1,4.80058442]
[1751738894478,8.47847571,2502.2,2502.1,0.8039416]
[1751738894980,8.47847571,2502.2,2502.1,0.0446416]
[1751738896484,8.47847571,2502.2,2502.1,4.04128442]
[1751738896855,8.47847571,2502.2,2502.1,5.76988622]
[1751738896856,0.29547571,2502.2,2502.1,5.76988622]
[1751738900077,0.29547571,2502.2,2502.1,15.80985264]
[1751738900284,0.29547571,2502.2,2502.1,15.76988622]
[1751738900481,0.1992,2502.5,2502.4,4.81876368]
[1751738900779,8.175,2502.6,2502.5,3.99592451]
[1751738900989,8.36281768,2502.6,2502.5,3.99592451]
[1751738901353,8.36281768,2502.6,2502.4,1.74407016]
[1751738901354,8.36281768,2502.6,2502.4,0.8226]
[1751738901664,8.36281768,2502.6,2502.1,10.9506434]
[1751738901665,0.1992,2502.4,2502.2,2.02]
[1751738901880,0.18781768,2502.3,2502.2,2.02]
[1751738904465,0.1852301,2502.3,2502.2,2.02]
[1751738904881,0.1992,2502.2,2502.1,0.0446416]
[1751738905184,8.55743009,2502.2,2502.1,0.0446416]
[1751738906987,8.55543009,2502.2,2502.1,0.0446416]
[1751738907585,0.38443009,2502.2,2502.1,0.0446416]
[1751738907779,8.55343009,2502.2,2502.1,0.0446416]
[1751738908183,13.40525619,2502.2,2502.1,0.0446416]
[1751738909972,13.20605619,2502.2,2502.1,0.0446416]
[1751738910705,13.20605619,2502.2,2502.0,0.002]
[1751738910706,3.99664282,2502.1,2502.0,0.002]
[1751738910870,4.18187291,2502.1,2502.0,0.002]
[1751738911073,6.30177556,2502.1,2502.0,0.002]
[1751738917007,6.30141269,2502.1,2502.0,0.002]
[1751738917789,14.46641269,2502.1,2502.0,0.002]
[1751738924996,6.30141269,2502.1,2502.0,0.002]
[1751738925314,12.33951004,2502.1,2502.0,0.002]
[1751738925715,12.33751004,2502.1,2502.0,0.002]
[1751738925919,4.18151004,2502.1,2502.0,0.002]
[1751738926215,12.33751004,2502.1,2502.0,0.002]
[1751738932236,21.29110732,2502.1,2502.0,0.002]
[1751738932389,33.93524845,2502.1,2502.0,0.002]
[1751738935419,34.48524845,2502.1,2502.0,0.002]
[1751738935634,25.53165117,2502.1,2502.0,0.002]
[1751738937992,16.82565117,2502.1,2502.0,0.002]
[1751738938327,24.96965117,2502.1,2502.0,0.002]
[1751738940003,16.82565117,2502.1,2502.0,0.002]
[1751738940237,12.32551004,2502.1,2502.0,0.002]
[1751738940803,4.18151004,2502.1,2502.0,0.002]
[1751738941005,12.32551004,2502.1,2502.0,0.002]
[1751738943233,4.18151004,2502.1,2502.0,0.002]
[1751738943438,12.32251004,2502.1,2502.0,0.002]
[1751738947428,0.18486722,2502.1,2502.0,0.002]
[1751738947637,8.52006722,2502.1,2502.0,0.002]
[1751738948256,8.52020864,2502.1,2502.0,0.002]
[1751738949658,0.38420864,2502.1,2502.0,0.002]
[1751738949857,8.52020864,2502.1,2502.0,0.002]
[1751738950432,0.38420864,2502.1,2502.0,0.002]
[1751738950630,8.51920864,2502.1,2502.0,0.8194]
[1751738951024,0.38420864,2502.1,2502.0,0.8194]
[1751738951231,8.31900864,2502.1,2502.0,5.34796519]
[1751738951452,8.31900864,2502.1,2502.0,5.30799717]
[1751738951652,8.31900864,2502.1,2502.0,1.31119462]
[1751738953047,8.31900864,2502.1,2502.0,5.30799717]
[1751738953249,8.31900864,2502.1,2502.0,1.31119462]
[1751738953563,8.31900864,2502.1,2502.0,5.30799717]
[1751738954465,0.18500864,2502.1,2502.0,5.30799717]
[1751738954626,8.31600864,2502.1,2502.0,5.30799717]
[1751738955141,0.18500864,2502.1,2502.0,15.34796519]
[1751738955344,0.18500864,2502.1,2502.0,17.50219717]
[1751738955568,0.18500864,2502.4,2502.3,4.78132338]
[1751738955870,0.18500864,2502.4,2502.3,5.69906446]
[1751738956082,0.18500864,2502.4,2502.3,5.71765826]
[1751738957345,0.001,2502.5,2502.3,5.71765826]
[1751738957661,0.001,2502.5,2502.4,3.99616368]
[1751738957850,0.18562291,2502.5,2502.4,3.99616368]
[1751738958027,0.18562291,2502.5,2502.4,5.00207607]
[1751738958833,0.18562291,2502.5,2502.4,1.00591239]
[1751738959163,0.18562291,2502.5,2502.4,5.00207607]
[1751738959535,0.18562291,2502.5,2502.4,5.0420377]
[1751738960766,0.18562291,2502.5,2502.4,1.00591239]
[1751738960965,4.1816269,2502.5,2502.4,0.0185938]
[1751738961166,4.3808269,2502.5,2502.4,0.0185938]
[1751738968881,4.9308269,2502.5,2502.4,0.0185938]
[1751738969570,7.53185412,2502.5,2502.4,0.0185938]
[1751738976077,17.53185412,2502.5,2502.4,0.0185938]
[1751738976376,3.99664282,2502.1,2502.0,0.002]
[1751738976557,12.29926573,2502.1,2502.0,0.002]
[1751738977152,12.84926573,2502.1,2502.0,0.002]
[1751738977356,22.95597588,2502.1,2502.0,0.002]
[1751738979442,32.95597588,2502.1,2502.0,0.002]
[1751738980749,15.8843786,2502.1,2502.0,0.002]
[1751738980949,24.0023786,2502.1,2502.0,0.002]
[1751738982500,24.0033786,2502.1,2502.0,0.002]
[1751738983578,15.8843786,2502.1,2502.0,0.002]
[1751738983787,22.29926573,2502.1,2502.0,0.002]
[1751738987066,14.18126573,2502.1,2502.0,0.002]
[1751738987262,22.29726573,2502.1,2502.0,0.002]
[1751738987697,12.29726573,2502.1,2502.0,0.002]
[1751738989302,12.11264282,2502.1,2502.0,0.002]
[1751738989516,0.18450371,2502.1,2502.0,0.002]
[1751738990026,8.29950371,2502.1,2502.0,0.002]
[1751738991274,0.18450371,2502.1,2502.0,0.002]
[1751738991479,8.49770371,2502.1,2502.0,0.7994]
[1751738991681,8.49770371,2502.1,2502.0,1.77900507]
[1751738992473,8.49107271,2502.1,2502.0,1.77900507]
[1751738992677,8.49107271,2502.1,2502.0,0.7994]
[1751738993617,0.37707271,2502.1,2502.0,4.79620255]
[1751738993780,8.29187271,2502.1,2502.0,13.94899983]
[1751738994794,8.29187271,2502.1,2502.0,4.99540255]
[1751738995695,0.17787271,2502.1,2502.0,4.99540255]
[1751738996420,0.17787271,2502.1,2502.0,6.79430138]
[1751738997107,0.17787271,2502.1,2502.0,6.8342694]
[1751738997529,8.28987271,2502.4,2502.3,4.79372338]
[1751738998012,8.28987271,2502.4,2502.3,0.7974]
[1751738998515,8.28987271,2502.4,2502.3,4.79372338]
[1751738999230,0.17787271,2502.4,2502.3,5.87535064]
[1751738999430,8.28887271,2502.4,2502.3,5.87535064]
[1751739001031,0.17787271,2502.4,2502.3,5.87535064]
[1751739001332,8.28787271,2502.4,2502.3,5.87535064]
[1751739003456,8.11,2502.4,2502.3,5.87535064]
[1751739003968,0.2002,2502.5,2502.4,3.99616368]
[1751739004116,8.28477057,2502.5,2502.4,5.02327674]
[1751739004321,0.001,2502.5,2502.4,5.73921511]
[1751739004533,0.001,2502.5,2502.4,5.77917674]
[1751739004726,0.001,2502.5,2502.4,5.60417674]
[1751739007060,0.001,2502.5,2502.4,5.80337674]
[1751739008922,0.001,2502.5,2502.4,15.80337674]
[1751739009122,0.001,2502.5,2502.4,15.76341511]
[1751739009726,0.001,2502.5,2502.4,16.31341511]
[1751739010437,0.001,2502.5,2502.4,24.41841511]
[1751739011042,0.001,2502.5,2502.4,25.31841511]
[1751739011959,0.001,2502.5,2502.4,16.66341511]
[1751739012153,0.001,2502.5,2502.4,18.64241511]
[1751739018979,0.001,2502.5,2502.4,17.07436368]
[1751739020952,0.001,2502.5,2502.4,17.89436368]
[1751739025192,0.001,2502.5,2502.4,25.99536368]
[1751739026886,0.001,2502.5,2502.4,17.89436368]
[1751739033173,0.001,2502.5,2502.4,17.89636368]
[1751739033372,0.001,2502.5,2502.4,21.74525616]
[1751739034099,0.001,2502.5,2502.4,29.84125616]
[1751739035774,0.001,2502.5,2502.4,29.83425616]
[1751739036480,0.001,2502.5,2502.4,19.76625616]
[1751739036687,0.001,2502.5,2502.4,21.74025616]
[1751739040173,0.001,2502.5,2502.4,16.92409248]
[1751739040478,0.001,2502.5,2502.4,20.92025616]
[1751739044374,0.001,2502.5,2502.4,21.68225616]
[1751739051411,0.001,2502.5,2502.4,20.92025616]
[1751739059835,0.17951056,2502.5,2502.4,20.92025616]
[1751739060197,0.001,2502.5,2502.4,20.92025616]
[1751739063936,0.001,2502.5,2502.4,13.0752]
[1751739064239,0.001,2502.5,2502.4,12.876]
[1751739065339,0.17952951,2502.5,2502.4,12.876]
[1751739066530,0.001,2502.5,2502.4,12.876]
[1751739067132,0.001,2502.5,2502.4,16.87216368]
[1751739069946,0.001,2502.5,2502.4,2.876]
[1751739070243,0.17953082,2502.5,2502.4,2.91596163]
[1751739071230,0.17953082,2502.5,2502.4,6.91212531]
[1751739074151,0.17947003,2502.5,2502.4,6.91212531]
[1751739077456,0.17947003,2502.5,2502.4,17.72972531]
[1751739077699,0.17947003,2502.5,2502.4,17.88896368]
[1751739077832,0.001,2502.5,2502.4,17.88896368]
[1751739078152,0.001,2502.5,2502.4,18.99972762]
[1751739088772,0.001,2502.5,2502.4,27.08172762]
[1751739093884,0.001,2502.5,2502.4,16.20812762]
[1751739094055,0.001,2502.5,2502.4,25.14636368]
[1751739094371,0.001,2502.5,2502.4,17.06536368]
[1751739098168,0.17944549,2502.5,2502.4,2.87]
[1751739098381,0.37864549,2502.5,2502.4,2.87]
[1751739098551,1.2157764,2502.5,2502.4,2.87]
[1751739098748,5.21178039,2502.5,2502.4,2.87]
[1751739100875,5.21178039,2502.5,2502.4,0.902]
[1751739101083,5.21178039,2502.5,2502.4,0.002]
[1751739109885,5.21147656,2502.5,2502.4,0.002]
[1751739119095,4.37434565,2502.5,2502.4,0.002]
[1751739128491,4.19620399,2502.5,2502.4,0.002]
[1751739129199,0.2002,2502.5,2502.4,0.002]
[1751739129399,8.2812,2502.5,2502.4,0.002]
[1751739129801,12.45563165,2502.5,2502.4,0.002]
[1751739130002,12.27720399,2502.5,2502.4,0.002]
[1751739130173,8.2812,2502.5,2502.4,0.002]
[1751739130505,8.45963926,2502.5,2502.4,0.002]
[1751739130801,8.2812,2502.5,2502.4,0.002]
[1751739131497,8.45963361,2502.5,2502.4,0.002]
[1751739132602,8.45962603,2502.5,2502.4,0.002]
[1751739133097,8.45862603,2502.5,2502.4,0.902]
[1751739135810,0.37862603,2502.5,2502.4,0.902]
[1751739136012,8.45862603,2502.5,2502.4,0.902]
[1751739136611,0.37862603,2502.5,2502.4,0.902]
[1751739136808,8.45862603,2502.5,2502.4,0.902]
[1751739138200,0.17942603,2502.5,2502.4,4.89816368]
[1751739138519,8.25842603,2502.5,2502.4,0.902]
[1751739138885,8.25842603,2502.5,2502.4,0.002]
[1751739139320,8.25841557,2502.5,2502.4,0.002]
[1751739146018,8.08,2502.5,2502.4,0.002]
[1751739146914,8.25827803,2502.5,2502.4,0.002]
[1751739151690,8.25827803,2502.5,2502.4,0.902]
[1751739156220,0.17927803,2502.5,2502.4,6.73570818]
[1751739161532,0.17927803,2502.5,2502.4,2.7395445]
[1751739161712,0.17927803,2502.5,2502.4,0.902]
[1751739163423,0.17928728,2502.5,2502.4,0.902]
[1751739164432,0.17928728,2502.5,2502.4,4.89816368]
[1751739167635,0.17928728,2502.5,2502.4,0.902]
[1751739168126,0.001,2502.5,2502.4,0.902]
[1751739168435,0.1793415,2502.5,2502.4,0.902]
[1751739169036,0.1793415,2502.5,2502.4,4.89816368]
[1751739169341,0.17933366,2502.5,2502.4,4.89816368]
[1751739169711,0.17933366,2502.5,2502.4,0.902]
[1751739170430,0.17933366,2502.5,2502.4,4.89816368]
[1751739173559,0.001,2502.5,2502.4,4.89816368]
[1751739173710,0.001,2502.5,2502.4,0.902]
[1751739177644,0.001,2502.5,2502.4,4.89816368]
[1751739178147,0.001,2502.5,2502.4,6.86416368]
[1751739178442,0.17943099,2502.5,2502.4,6.86416368]
[1751739183141,0.17946897,2502.5,2502.4,8.70156965]
[1751739183344,0.17946897,2502.5,2502.4,16.0012249]
[1751739183647,0.17946897,2502.5,2502.4,9.68956965]
[1751739184148,0.17950189,2502.5,2502.4,9.68956965]
[1751739184314,0.001,2502.5,2502.4,9.68956965]
[1751739188850,0.001,2502.5,2502.4,16.2004249]
[1751739190722,0.001,2502.5,2502.4,34.8234249]
[1751739192947,0.001,2502.5,2502.4,39.5734249]
[1751739193344,0.17832061,2503.3,2503.2,3.99488654]
[1751739193533,0.17832061,2503.3,2503.2,10.50574179]
[1751739195061,0.1992,2503.6,2503.3,3.9946548]
[1751739195236,0.17827921,2503.5,2503.4,3.99454116]
[1751739196026,0.17827921,2503.5,2503.3,4.23378762]
[1751739196229,0.17827921,2503.4,2503.3,4.23378762]
[1751739197454,8.2702,2503.7,2503.4,3.99455387]
[1751739197455,0.17827921,2503.6,2503.4,3.99455387]
[1751739197662,0.17827921,2503.5,2503.4,3.99455387]
[1751739198161,0.17803251,2503.5,2503.4,3.99455387]
[1751739198355,0.17803251,2503.5,2503.3,4.23378926]
[1751739198562,12.26429978,2503.7,2503.3,4.193842]
[1751739198563,0.17803251,2503.4,2503.3,4.193842]
[1751739198767,0.17803251,2503.6,2503.3,4.193842]
[1751739199065,0.17803251,2503.5,2503.3,0.1992]
[1751739199232,0.17803251,2503.4,2503.3,0.1992]
[1751739199558,0.17792804,2503.6,2503.3,4.19392104]
[1751739199757,0.17792804,2503.5,2503.3,4.19392104]
[1751739199957,0.17792804,2503.6,2503.3,4.19392104]
[1751739200159,0.17792804,2503.5,2503.3,4.19392104]
[1751739200354,0.17792804,2503.6,2503.3,4.19392104]
[1751739200560,0.17792804,2503.5,2503.3,4.19392104]
[1751739200764,0.17792804,2503.6,2503.3,4.19392104]
[1751739200964,0.17790081,2503.5,2503.3,4.19392104]
[1751739201162,12.2643426,2503.7,2503.3,4.19392104]
[1751739201163,0.17790081,2503.6,2503.3,4.19392104]
[1751739201462,0.17790081,2503.5,2503.3,4.19392104]
[1751739201662,0.17790081,2503.6,2503.3,4.19392104]
[1751739201964,0.17790081,2503.5,2503.3,4.19392104]
[1751739202164,0.17790081,2503.6,2503.3,4.19392104]
[1751739202337,0.17790081,2503.5,2503.3,4.19392104]
[1751739202538,0.17790081,2503.6,2503.3,0.1992]
[1751739202847,0.17790081,2503.5,2503.3,0.1992]
[1751739203036,0.17790081,2503.6,2503.3,0.1992]
[1751739203232,0.17790081,2503.5,2503.3,0.1992]
[1751739203438,0.17790081,2503.6,2503.3,0.1992]
[1751739208663,3.99456738,2503.4,2503.1,1.964]
[1751739208867,3.99488654,2503.2,2503.1,1.964]
[1751739209070,3.99488654,2503.2,2502.9,4.75]
[1751739209276,4.19408654,2503.2,2502.9,4.75]
[1751739209473,3.99505495,2503.1,2502.9,4.75]
[1751739210672,3.99505495,2503.1,2502.7,6.15886918]
[1751739212245,3.99505495,2503.1,2502.7,2.1632]
[1751739214680,3.99505495,2503.1,2502.9,0.9]
[1751739214860,0.1992,2503.2,2502.9,0.9]
[1751739214861,4.19417573,2503.2,2502.9,0.9]
[1751739215060,0.1777796,2503.1,2502.9,0.9]
[1751739215362,4.19417573,2503.2,2502.9,0.9]
[1751739215559,0.17780038,2503.1,2502.9,0.9]
[1751739215760,4.19417573,2503.2,2502.9,0.9]
[1751739215963,0.17780036,2503.1,2502.9,0.9]
[1751739216257,4.19417573,2503.2,2502.9,0.9]
[1751739216582,0.17781608,2503.1,2502.9,0.9]
[1751739216747,4.19417573,2503.2,2502.9,0.9]
[1751739216948,0.17782128,2503.1,2502.9,0.9]
[1751739217250,3.99464057,2503.4,2502.9,5.64502694]
[1751739217445,8.44605273,2503.3,2502.9,5.84422694]
[1751739217669,0.17785273,2503.2,2502.9,5.84422694]
[1751739217877,0.17785273,2503.1,2502.9,5.84422694]
[1751739218075,8.2682,2503.3,2502.9,5.84422694]
[1751739218273,0.17786141,2503.2,2502.9,5.13436004]
[1751739218478,0.17786141,2503.1,2502.9,5.13436004]
[1751739218779,0.17790054,2503.0,2502.9,5.13436004]
[1751739219074,8.2682,2503.3,2502.9,5.13436004]
[1751739219075,0.17790048,2503.2,2502.9,5.13436004]
[1751739219249,0.17790048,2503.1,2502.9,5.13436004]
[1751739219449,0.17790048,2503.0,2502.9,7.21693439]
[1751739219950,0.17790048,2503.0,2502.9,7.98823439]
[1751739220150,0.17790048,2503.2,2503.1,3.99504614]
[1751739220371,0.17790048,2503.3,2503.2,3.99488654]
[1751739220567,0.17790048,2503.3,2503.2,4.0348354]
[1751739220779,0.17790048,2503.3,2503.2,5.71263069]
[1751739233296,0.17890048,2503.3,2503.2,5.71263069]
[1751739235304,0.17890048,2503.3,2503.2,6.48263069]
[1751739235677,0.17913505,2503.3,2503.2,6.48263069]
[1751739237084,0.17913505,2503.3,2503.2,6.52257955]
[1751739238501,0.17913505,2503.3,2503.2,6.48263069]
[1751739238880,0.17913505,2503.3,2503.2,4.76488654]